[Event "SS Manhem Chess Week 2019 GM and IM tournaments"]
[Site "Molnlycke kulturhus, Biblioteksgatan 2, Molnlycke, Sweden"]
[Date "2019.08.11"]
[Round "3.9"]
[White "Pham, Bich Ngoc"]
[Black "Hill, Alistair"]
[Result "1-0"]
[TimeControl "90 minutes for 40 moves + 30 minutes for the rest of the game + 30 seconds per move from move one."]
[WhiteTitle "WIM"]
[WhiteFideId "12401285"]
[BlackFideId "432407"]
[WhiteElo "2176"]
[BlackElo "2224"]

1. c4 {[%clk 01:27:02]} {[%emt 00:03:57]} Nf6 {[%clk 01:30:52]} {[%emt
00:00:08]} 2. Nf3 {[%clk 01:27:15]} {[%emt 00:00:08]} c5 {[%clk 01:31:22]} 3.
Nc3 {[%clk 01:27:38]} {[%emt 00:00:16]} d5 {[%clk 01:31:26]} {[%emt 00:00:26]}
4. cxd5 {[%clk 01:27:46]} {[%emt 00:00:22]} Nxd5 {[%clk 01:31:50]} {[%emt
00:00:06]} 5. g3 {[%clk 01:28:05]} {[%emt 00:00:11]} Nc6 {[%clk 01:31:49]}
{[%emt 00:00:32]} 6. Bg2 {[%clk 01:28:25]} {[%emt 00:00:09]} Nc7 {[%clk
01:31:07]} {[%emt 00:01:12]} 7. O-O {[%clk 01:28:17]} {[%emt 00:00:38]} e5
{[%clk 01:31:30]} {[%emt 00:00:08]} 8. d3 {[%clk 01:28:36]} {[%emt 00:00:10]}
Be7 {[%clk 01:31:55]} {[%emt 00:00:05]} 9. b3 {[%clk 01:22:28]} {[%emt
00:06:39]} O-O {[%clk 01:31:16]} {[%emt 00:01:09]} 10. Bb2 {[%clk 01:22:42]}
{[%emt 00:00:15]} Be6 {[%clk 01:28:12]} {[%emt 00:03:34]} 11. Rc1 {[%clk
01:22:32]} {[%emt 00:00:40]} b6 {[%clk 01:23:56]} {[%emt 00:04:47]} 12. Qc2
{[%clk 01:21:09]} {[%emt 00:01:52]} Qd7 {[%clk 01:23:10]} {[%emt 00:01:17]} 13.
Rfd1 {[%clk 01:20:58]} {[%emt 00:00:40]} Rad8 {[%clk 01:21:43]} {[%emt
00:01:57]} 14. Qb1 {[%clk 01:20:53]} {[%emt 00:00:35]} f5 {[%clk 01:12:21]}
{[%emt 00:09:52]} 15. Qa1 {[%clk 01:19:45]} {[%emt 00:01:37]} Bf6 {[%clk
01:12:32]} {[%emt 00:00:19]} 16. e3 {[%clk 01:16:14]} {[%emt 00:04:01]} Qe8
{[%clk 01:00:49]} {[%emt 00:12:13]} 17. Rd2 {[%clk 01:04:53]} {[%emt 00:11:51]}
Bf7 {[%clk 00:57:57]} {[%emt 00:03:22]} 18. Ne2 {[%clk 01:03:19]} {[%emt
00:02:03]} Nd5 {[%clk 00:53:52]} {[%emt 00:04:37]} 19. d4 {[%clk 01:01:16]}
{[%emt 00:02:32]} cxd4 {[%clk 00:44:47]} {[%emt 00:09:35]} 20. exd4 {[%emt
00:02:37]} e4 {[%clk 00:44:56]} {[%emt 00:00:13]} 21. Ne5 {[%clk 00:59:07]}
{[%emt 00:00:40]} Nxe5 {[%clk 00:45:13]} {[%emt 00:00:13]} 22. dxe5 {[%clk
00:59:31]} {[%emt 00:00:06]} Bg5 {[%clk 00:45:39]} {[%emt 00:00:04]} 23. Rcd1
{[%clk 00:51:05]} {[%emt 00:08:56]} Bxd2 {[%clk 00:44:40]} {[%emt 00:01:29]} 24.
Rxd2 {[%clk 00:51:28]} {[%emt 00:00:06]} Nb4 {[%clk 00:36:52]} {[%emt
00:08:19]} 25. Nd4 {[%clk 00:47:50]} {[%emt 00:04:08]} Be6 {[%clk 00:34:45]}
{[%emt 00:02:37]} 26. Bf1 {[%clk 00:47:40]} {[%emt 00:00:40]} Nd3 {[%clk
00:30:04]} {[%emt 00:05:12]} 27. Bxd3 {[%clk 00:47:18]} {[%emt 00:00:52]} exd3
{[%clk 00:30:28]} {[%emt 00:00:05]} 28. Rxd3 {[%clk 00:47:36]} {[%emt
00:00:12]} Qg6 {[%clk 00:22:37]} {[%emt 00:08:21]} 29. Ba3 {[%clk 00:41:23]}
{[%emt 00:06:43]} Rfe8 {[%clk 00:22:40]} {[%emt 00:00:27]} 30. f4 {[%clk
00:40:05]} {[%emt 00:01:48]} Bd5 {[%clk 00:21:35]} {[%emt 00:01:36]} 31. Bd6
{[%clk 00:39:00]} {[%emt 00:01:35]} Be4 {[%clk 00:20:22]} {[%emt 00:01:43]} 32.
Rd2 {[%clk 00:36:55]} {[%emt 00:02:35]} Qf7 {[%clk 00:13:51]} {[%emt 00:07:00]}
33. Nb5 {[%clk 00:35:34]} {[%emt 00:01:52]} Qh5 {[%clk 00:09:56]} {[%emt
00:04:25]} 34. Qc3 {[%clk 00:32:32]} {[%emt 00:03:31]} Rc8 {[%clk 00:09:33]}
{[%emt 00:00:53]} 35. Nc7 {[%clk 00:32:24]} {[%emt 00:00:38]} Red8 {[%clk
00:05:22]} {[%emt 00:04:42]} 36. e6 {[%clk 00:26:24]} {[%emt 00:06:31]} Rxd6
{[%clk 00:05:01]} {[%emt 00:00:51]} 37. Rxd6 {[%clk 00:26:40]} {[%emt
00:00:13]} Qe2 {[%clk 00:05:24]} {[%emt 00:00:07]} 38. Qd2 {[%clk 00:26:42]}
{[%emt 00:00:27]} Qxd2 {[%clk 00:03:15]} {[%emt 00:02:41]} 39. Rxd2 {[%clk
00:27:06]} {[%emt 00:00:05]} Bc6 {[%clk 00:00:57]} {[%emt 00:02:47]} 40. Rd6
{[%clk 00:23:13]} {[%emt 00:04:23]} Be8 {[%clk 00:01:11]} {[%emt 00:00:16]} 41.
Nxe8 {[%clk 00:22:03]} {[%emt 00:01:40]} Rxe8 {[%clk 00:01:39]} {[%emt
00:00:02]} 42. Kf2 {[%clk 00:21:23]} {[%emt 00:01:10]} Kf8 {[%clk 00:02:05]}
{[%emt 00:00:04]} 43. Ke3 {[%clk 00:21:15]} {[%emt 00:00:38]} Ke7 {[%clk
00:01:24]} {[%emt 00:01:10]} 44. Rd7+ {[%clk 00:19:39]} {[%emt 00:02:06]} Kxe6
{[%clk 00:01:51]} {[%emt 00:00:03]} 45. Rxa7 {[%clk 00:19:43]} {[%emt
00:00:26]} Kf6+ {[%clk 00:02:01]} {[%emt 00:00:19]} 46. Kd4 {[%clk 00:18:18]}
{[%emt 00:01:55]} h5 {[%clk 00:02:29]} {[%emt 00:00:03]} 47. Rb7 {[%clk
00:18:01]} {[%emt 00:00:46]} Re6 {[%clk 00:02:52]} {[%emt 00:00:07]} 48. Kd5
{[%clk 00:17:53]} {[%emt 00:00:37]} h4 {[%clk 00:02:21]} {[%emt 00:01:01]} 49.
Rxg7 {[%clk 00:13:43]} {[%emt 00:04:40]} Re2 {[%clk 00:02:06]} {[%emt
00:00:45]} 50. Rh7 {[%clk 00:11:59]} {[%emt 00:02:13]} Rd2+ {[%clk 00:28:37]}
{[%emt 00:04:00]} 51. Kc4 {[%clk 00:41:33]} {[%emt 00:00:56]} Rxh2 {[%clk
00:28:25]} {[%emt 00:00:42]} 52. Rxh4 {[%clk 00:40:45]} {[%emt 00:01:17]} Rxa2
{[%clk 00:28:41]} {[%emt 00:00:14]} 53. Rh6+ {[%clk 00:41:06]} {[%emt
00:00:09]} Kf7 {[%clk 00:29:06]} {[%emt 00:00:05]} 54. Rxb6 {[%clk 00:41:27]}
{[%emt 00:00:10]} Rg2 {[%clk 00:29:31]} {[%emt 00:00:05]} 55. Kd5 {[%clk
00:41:39]} {[%emt 00:00:17]} Rxg3 {[%clk 00:29:26]} {[%emt 00:00:35]} 56. Ke5
{[%clk 00:42:02]} {[%emt 00:00:06]} Rc3 {[%clk 00:28:47]} {[%emt 00:01:10]} 57.
b4 {[%clk 00:41:45]} {[%emt 00:00:48]} Rc2 {[%clk 00:28:17]} {[%emt 00:01:00]}
58. Kxf5 {[%clk 00:42:06]} {[%emt 00:00:09]} Ke7 {[%clk 00:28:45]} {[%emt
00:00:02]} 59. b5 {[%clk 00:41:38]} {[%emt 00:00:58]} Rg2 {[%clk 00:28:50]}
{[%emt 00:00:25]} 60. Rb8 {[%clk 00:41:02]} {[%emt 00:01:06]} Kd6 {[%clk
00:29:00]} {[%emt 00:00:20]} 61. Kf6 {[%clk 00:40:41]} {[%emt 00:00:51]} Kc7
{[%clk 00:29:10]} {[%emt 00:00:20]} 62. Re8 {[%clk 00:40:25]} {[%emt 00:00:45]}
Rb2 {[%clk 00:29:34]} {[%emt 00:00:07]} 63. Re5 {[%clk 00:40:26]} {[%emt
00:00:28]} Kd7 {[%clk 00:29:59]} {[%emt 00:00:06]} 64. Rd5+ {[%clk 00:39:29]}
{[%emt 00:01:27]} Kc7 {[%clk 00:30:13]} {[%emt 00:00:17]} 65. f5 {[%clk
00:39:48]} {[%emt 00:00:11]} 1-0

[Event "SS Manhem Chess Week 2019 GM and IM tournaments"]
[Site "Molnlycke kulturhus, Biblioteksgatan 2, Molnlycke, Sweden"]
[Date "2019.08.11"]
[Round "3.10"]
[White "Kucuksari, Kaan"]
[Black "Jacobsen, Mikkel Manosri"]
[Result "0-1"]
[TimeControl "90 minutes for 40 moves + 30 minutes for the rest of the game + 30 seconds per move from move one."]
[WhiteTitle "FM"]
[BlackTitle "FM"]
[WhiteFideId "6380166"]
[BlackFideId "1444514"]
[WhiteElo "2286"]
[BlackElo "2269"]

1. d4 {[%clk 01:27:15]} {[%emt 00:03:45]} Nf6 {[%clk 01:30:54]} {[%emt
00:00:06]} 2. Nf3 {[%clk 01:27:28]} {[%emt 00:00:17]} d5 {[%clk 01:31:09]}
{[%emt 00:00:15]} 3. c4 {[%clk 01:27:38]} {[%emt 00:00:20]} e6 {[%clk
01:31:35]} {[%emt 00:00:05]} 4. g3 {[%clk 01:28:06]} {[%emt 00:00:02]} Bb4+
{[%clk 01:32:00]} {[%emt 00:00:04]} 5. Bd2 {[%clk 01:28:32]} {[%emt 00:00:04]}
Be7 {[%clk 01:32:27]} {[%emt 00:00:03]} 6. Bg2 {[%clk 01:28:57]} {[%emt
00:00:06]} O-O {[%clk 01:32:53]} {[%emt 00:00:03]} 7. O-O {[%clk 01:29:21]}
{[%emt 00:00:05]} Nbd7 {[%clk 01:33:20]} {[%emt 00:00:03]} 8. Bf4 {[%clk
01:28:38]} {[%emt 00:01:14]} c6 {[%clk 01:33:44]} {[%emt 00:00:06]} 9. Qc2
{[%clk 01:26:14]} {[%emt 00:02:54]} Ne4 {[%clk 01:34:09]} {[%emt 00:00:05]} 10.
Nbd2 {[%clk 01:25:24]} {[%emt 00:01:19]} g5 {[%clk 01:34:35]} {[%emt 00:00:05]}
11. Be3 {[%clk 01:25:47]} {[%emt 00:00:07]} f5 {[%clk 01:35:02]} {[%emt
00:00:03]} 12. Nxe4 {[%clk 01:24:46]} {[%emt 00:01:32]} dxe4 {[%clk 01:32:59]}
{[%emt 00:02:33]} 13. Ne5 {[%clk 01:24:35]} {[%emt 00:00:41]} Nxe5 {[%clk
01:24:40]} {[%emt 00:08:49]} 14. dxe5 {[%clk 01:25:03]} {[%emt 00:00:02]} Qc7
{[%clk 01:25:01]} {[%emt 00:00:09]} 15. Qc3 {[%clk 01:14:25]} {[%emt 00:11:08]}
c5 {[%clk 01:24:34]} {[%emt 00:00:57]} 16. Rad1 {[%clk 01:13:29]} {[%emt
00:01:27]} Bd7 {[%clk 01:24:49]} {[%emt 00:00:15]} 17. Qc1 {[%clk 01:03:34]}
{[%emt 00:10:24]} h6 {[%clk 01:23:55]} {[%emt 00:01:24]} 18. h4 {[%clk
00:59:57]} {[%emt 00:04:08]} Bc6 {[%clk 01:18:23]} {[%emt 00:06:01]} 19. hxg5
{[%clk 00:59:18]} {[%emt 00:01:09]} Qxe5 {[%clk 01:18:25]} {[%emt 00:00:27]} 20.
gxh6 {[%clk 00:54:41]} {[%emt 00:05:08]} Kh7 {[%clk 01:14:35]} {[%emt
00:04:20]} 21. b3 {[%clk 00:39:13]} {[%emt 00:15:58]} Qf6 {[%clk 01:13:14]}
{[%emt 00:01:49]} 22. Bd2 {[%clk 00:32:59]} {[%emt 00:06:45]} Rg8 {[%clk
01:05:42]} {[%emt 00:08:02]} 23. Bc3 {[%clk 00:29:07]} {[%emt 00:04:22]} Qxh6
{[%clk 01:05:50]} {[%emt 00:00:22]} 24. Qxh6+ {[%clk 00:23:02]} {[%emt
00:06:35]} Kxh6 {[%clk 01:06:18]} {[%emt 00:00:02]} 25. Be5 {[%clk 00:23:06]}
{[%emt 00:00:26]} Kg6 {[%clk 01:04:15]} {[%emt 00:02:32]} 26. f3 {[%clk
00:22:54]} {[%emt 00:00:43]} Bf6 {[%clk 01:01:55]} {[%emt 00:02:50]} 27. Bf4
{[%clk 00:12:30]} {[%emt 00:10:54]} Bd4+ {[%clk 00:54:08]} {[%emt 00:08:16]} 28.
e3 {[%clk 00:12:44]} {[%emt 00:00:17]} Bf6 {[%clk 00:54:07]} {[%emt 00:00:30]}
29. fxe4 {[%clk 00:09:19]} {[%emt 00:03:55]} e5 {[%clk 00:52:49]} {[%emt
00:01:49]} 30. exf5+ {[%clk 00:00:38]} {[%emt 00:09:11]} Kxf5 {[%clk 00:53:17]}
{[%emt 00:00:02]} 31. Rd6 {[%clk 00:00:37]} {[%emt 00:00:31]} Bxg2 {[%clk
00:44:00]} {[%emt 00:09:47]} 32. Kxg2 {[%clk 00:01:04]} {[%emt 00:00:04]} Bh8
{[%clk 00:44:24]} {[%emt 00:00:05]} 33. Bh6+ {[%clk 00:00:36]} {[%emt
00:00:58]} Ke4 {[%clk 00:44:53]} 34. Rd7 {[%clk 00:00:35]} {[%emt 00:00:31]} b6
{[%clk 00:44:51]} {[%emt 00:00:32]} 35. Rff7 {[%clk 00:00:39]} {[%emt
00:00:26]} Rg6 {[%clk 00:36:51]} {[%emt 00:08:30]} 36. Bg7 {[%clk 00:00:40]}
{[%emt 00:00:28]} a5 {[%clk 00:25:19]} {[%emt 00:12:03]} 37. Kf2 {[%clk
00:00:38]} {[%emt 00:00:32]} a4 {[%clk 00:23:15]} {[%emt 00:02:34]} 38. Bxh8
{[%clk 00:00:41]} {[%emt 00:00:26]} Rxh8 {[%clk 00:23:40]} {[%emt 00:00:05]} 39.
Rh7 {[%clk 00:00:51]} {[%emt 00:00:19]} Rxh7 {[%clk 00:23:30]} {[%emt
00:00:40]} 40. Rxh7 {[%clk 00:01:19]} {[%emt 00:00:02]} axb3 {[%clk 00:23:46]}
{[%emt 00:00:14]} 41. axb3 {[%clk 00:01:42]} {[%emt 00:00:07]} Kd3 {[%clk
00:24:07]} {[%emt 00:00:09]} 42. Kf3 {[%clk 00:15:52]} {[%emt 00:16:19]} Rf6
{[%clk 00:53:20]} {[%emt 00:01:17]} 43. Kg4 {[%clk 00:16:00]} {[%emt 00:00:22]}
Kxe3 {[%clk 00:51:12]} {[%emt 00:02:38]} 44. Kh5 {[%clk 00:15:35]} {[%emt
00:00:54]} e4 {[%clk 00:48:45]} {[%emt 00:02:58]} 45. g4 {[%clk 00:15:55]}
{[%emt 00:00:10]} Kf4 {[%clk 00:48:41]} {[%emt 00:00:33]} 46. Re7 {[%clk
00:15:51]} {[%emt 00:00:34]} Rf8 {[%clk 00:47:34]} {[%emt 00:01:38]} 47. Re6
{[%clk 00:10:10]} {[%emt 00:06:11]} e3 {[%clk 00:47:52]} {[%emt 00:00:12]} 48.
Kh6 {[%clk 00:08:32]} {[%emt 00:02:08]} Kxg4 {[%clk 00:46:27]} {[%emt
00:01:55]} 49. Rxe3 {[%clk 00:08:57]} {[%emt 00:00:06]} Rf3 {[%clk 00:46:54]}
{[%emt 00:00:03]} 50. Re6 {[%clk 00:07:05]} {[%emt 00:02:22]} Rxb3 {[%clk
00:47:15]} {[%emt 00:00:10]} 51. Kg6 {[%clk 00:07:28]} {[%emt 00:00:06]} Kf4
{[%clk 00:45:08]} {[%emt 00:02:36]} 52. Kf6 {[%clk 00:07:30]} {[%emt 00:00:29]}
Rb4 {[%clk 00:44:57]} {[%emt 00:00:42]} 53. Ke7 {[%clk 00:06:58]} {[%emt
00:01:01]} Rxc4 {[%clk 00:45:02]} {[%emt 00:00:25]} 54. Rxb6 {[%clk 00:07:14]}
{[%emt 00:00:13]} Rd4 {[%clk 00:45:27]} {[%emt 00:00:06]} 55. Rb3 {[%clk
00:05:25]} {[%emt 00:02:19]} Ke4 {[%clk 00:45:22]} {[%emt 00:00:34]} 56. Rc3
{[%clk 00:04:47]} {[%emt 00:01:09]} Rd5 {[%clk 00:45:16]} {[%emt 00:00:35]} 57.
Ke6 {[%clk 00:04:27]} {[%emt 00:00:50]} Kd4 {[%clk 00:45:34]} {[%emt 00:00:12]}
58. Rc1 {[%clk 00:04:37]} {[%emt 00:00:20]} Rh5 {[%clk 00:46:00]} {[%emt
00:00:04]} 59. Rd1+ {[%clk 00:02:49]} {[%emt 00:02:18]} Kc3 {[%clk 00:46:22]}
{[%emt 00:00:08]} 60. Rd8 {[%clk 00:03:17]} {[%emt 00:00:02]} c4 {[%clk
00:46:34]} {[%emt 00:00:18]} 61. Rc8 {[%clk 00:03:30]} {[%emt 00:00:17]} Kd3
{[%clk 00:46:57]} {[%emt 00:00:08]} 62. Rd8+ {[%clk 00:03:39]} {[%emt
00:00:20]} Kc2 {[%clk 00:47:19]} {[%emt 00:00:08]} 63. Rc8 {[%clk 00:04:07]}
{[%emt 00:00:03]} c3 {[%clk 00:47:44]} {[%emt 00:00:04]} 64. Kd6 {[%clk
00:04:26]} {[%emt 00:00:09]} Kd2 {[%clk 00:48:09]} {[%emt 00:00:07]} 65. Ke6
{[%clk 00:04:51]} {[%emt 00:00:05]} Rh3 {[%clk 00:48:00]} {[%emt 00:00:38]} 66.
Ke5 {[%clk 00:04:57]} {[%emt 00:00:24]} c2 {[%clk 00:48:24]} {[%emt 00:00:06]}
67. Kd4 {[%emt 00:00:31]} 0-1

[Event "SS Manhem Chess Week 2019 GM and IM tournaments"]
[Site "Molnlycke kulturhus, Biblioteksgatan 2, Molnlycke, Sweden"]
[Date "2019.08.12"]
[Round "4.1"]
[White "Seo, Jung Min"]
[Black "Ahlander, Bjorn"]
[Result "1-0"]
[TimeControl "90 minutes for 40 moves + 30 minutes for the rest of the game + 30 seconds per move from move one."]
[WhiteTitle "FM"]
[BlackTitle "IM"]
[WhiteFideId "1734687"]
[BlackFideId "1700251"]
[WhiteElo "2409"]
[BlackElo "2390"]

1. e4 {[%clk 01:30:58]} {[%emt 00:00:01]} c5 {[%clk 01:30:48]} {[%emt
00:00:12]} 2. Nc3 {[%clk 01:30:20]} {[%emt 00:01:09]} Nc6 {[%clk 01:31:01]}
{[%emt 00:00:17]} 3. d3 {[%clk 01:28:07]} {[%emt 00:02:43]} e6 {[%clk
01:30:30]} {[%emt 00:01:00]} 4. g3 {[%clk 01:27:49]} {[%emt 00:00:49]} g6
{[%clk 01:29:52]} {[%emt 00:01:07]} 5. Bg2 {[%clk 01:28:06]} {[%emt 00:00:14]}
Bg7 {[%clk 01:30:20]} {[%emt 00:00:02]} 6. Nge2 {[%clk 01:25:59]} {[%emt
00:02:38]} Nge7 {[%clk 01:30:23]} {[%emt 00:00:26]} 7. O-O {[%clk 01:25:23]}
{[%emt 00:01:07]} d6 {[%clk 01:28:59]} {[%emt 00:01:53]} 8. Be3 {[%clk
01:24:58]} {[%emt 00:00:56]} Nd4 {[%clk 01:28:39]} {[%emt 00:00:49]} 9. Qd2
{[%clk 01:24:23]} {[%emt 00:01:06]} O-O {[%clk 01:29:02]} {[%emt 00:00:06]} 10.
Nd1 {[%clk 01:23:02]} {[%emt 00:01:51]} Rb8 {[%clk 01:24:17]} {[%emt 00:05:15]}
11. Nc1 {[%clk 01:10:54]} {[%emt 00:12:39]} b5 {[%clk 01:23:03]} {[%emt
00:01:43]} 12. c3 {[%clk 01:11:18]} {[%emt 00:00:06]} Ndc6 {[%clk 01:23:21]}
{[%emt 00:00:11]} 13. d4 {[%clk 01:10:05]} {[%emt 00:01:44]} cxd4 {[%clk
01:10:15]} {[%emt 00:13:36]} 14. cxd4 {[%clk 01:10:34]} {[%emt 00:00:01]} Qa5
{[%clk 01:09:50]} {[%emt 00:00:54]} 15. Nc3 {[%clk 01:09:07]} {[%emt 00:01:58]}
b4 {[%clk 01:08:46]} {[%emt 00:01:33]} 16. N3e2 {[%clk 01:08:55]} {[%emt
00:00:43]} Ba6 {[%clk 01:07:30]} {[%emt 00:01:46]} 17. Nb3 {[%clk 01:08:24]}
{[%emt 00:01:01]} Qc7 {[%clk 01:03:43]} {[%emt 00:04:16]} 18. Rfc1 {[%clk
01:03:54]} {[%emt 00:05:01]} Qd7 {[%clk 01:03:33]} {[%emt 00:00:40]} 19. f4
{[%clk 01:01:17]} {[%emt 00:03:07]} Rfc8 {[%clk 00:51:37]} {[%emt 00:34:50]} 20.
Bf2 {[%clk 00:56:26]} {[%emt 00:05:21]} Bb5 {[%clk 00:45:15]} {[%emt 00:06:52]}
21. d5 {[%clk 00:53:43]} {[%emt 00:03:14]} Nd8 {[%emt 00:02:34]} 22. Ned4
{[%clk 00:46:36]} {[%emt 00:06:53]} Ba4 {[%clk 00:40:19]} {[%emt 00:04:06]} 23.
Rxc8 {[%clk 00:44:52]} {[%emt 00:02:15]} Qxc8 {[%clk 00:38:01]} {[%emt
00:02:47]} 24. Rc1 {[%clk 00:44:10]} {[%emt 00:01:13]} Qd7 {[%clk 00:38:28]}
{[%emt 00:00:03]} 25. Na5 {[%clk 00:43:07]} {[%emt 00:01:33]} e5 {[%clk
00:35:44]} {[%emt 00:03:14]} 26. fxe5 dxe5 {[%clk 00:32:54]} 27. Ndb3 {[%clk
00:41:01]} {[%emt 00:00:28]} Nc8 {[%clk 00:28:42]} {[%emt 00:04:41]} 28. Nc5
{[%clk 00:27:58]} {[%emt 00:13:34]} Qb5 {[%clk 00:28:36]} {[%emt 00:00:35]} 29.
Nc4 {[%clk 00:26:16]} {[%emt 00:02:13]} Nb7 {[%emt 00:08:37]} 30. Nd3 {[%clk
00:23:32]} {[%emt 00:00:22]} b3 {[%clk 00:20:16]} {[%emt 00:03:35]} 31. axb3
{[%clk 00:23:38]} {[%emt 00:00:24]} Qxb3 {[%clk 00:18:47]} {[%emt 00:01:58]} 32.
Ncxe5 {[%clk 00:23:48]} {[%emt 00:00:21]} Ncd6 {[%clk 00:18:06]} {[%emt
00:01:10]} 33. Nc6 {[%clk 00:22:27]} {[%emt 00:01:52]} Re8 {[%clk 00:16:42]}
{[%emt 00:01:54]} 34. e5 {[%clk 00:22:37]} {[%emt 00:00:20]} Nc4 {[%clk
00:15:52]} {[%emt 00:01:18]} 35. Qe2 {[%clk 00:19:53]} {[%emt 00:03:16]} Nxe5
{[%clk 00:06:48]} {[%emt 00:09:34]} 36. Ndxe5 {[%clk 00:19:08]} {[%emt
00:01:16]} f6 {[%clk 00:03:41]} {[%emt 00:03:36]} 37. Nd4 {[%clk 00:19:10]}
{[%emt 00:00:28]} Qa2 {[%clk 00:03:21]} {[%emt 00:00:50]} 38. Qc4 {[%clk
00:18:54]} {[%emt 00:00:46]} Qxc4 {[%clk 00:00:53]} {[%emt 00:02:58]} 39. Nxc4
{[%clk 00:19:20]} {[%emt 00:00:04]} Rc8 {[%clk 00:01:17]} {[%emt 00:00:06]} 40.
Nc6 {[%clk 00:19:34]} {[%emt 00:00:16]} Kf7 {[%clk 00:01:34]} {[%emt 00:00:12]}
41. Ra1 {[%clk 00:19:53]} {[%emt 00:00:12]} 1-0

[Event "SS Manhem Chess Week 2019 GM and IM tournaments"]
[Site "Molnlycke kulturhus, Biblioteksgatan 2, Molnlycke, Sweden"]
[Date "2019.08.12"]
[Round "4.3"]
[White "Urkedal, Frode Olav Olsen"]
[Black "Vypkhaniuk, Ihor"]
[Result "1-0"]
[TimeControl "90 minutes for 40 moves + 30 minutes for the rest of the game + 30 seconds per move from move one."]
[WhiteTitle "GM"]
[BlackTitle "FM"]
[WhiteFideId "1506102"]
[BlackFideId "14112256"]
[WhiteElo "2566"]
[BlackElo "2405"]

1. d4 {[%clk 01:30:55]} {[%emt 00:00:03]} Nf6 {[%clk 01:30:25]} {[%emt
00:00:35]} 2. c4 {[%clk 01:31:18]} {[%emt 00:00:07]} e6 {[%clk 01:30:37]}
{[%emt 00:00:18]} 3. Nf3 {[%clk 01:31:39]} {[%emt 00:00:09]} c5 {[%clk
01:30:35]} {[%emt 00:00:32]} 4. d5 {[%clk 01:32:04]} {[%emt 00:00:05]} b5
{[%clk 01:30:35]} {[%emt 00:00:30]} 5. dxe6 {[%clk 01:32:29]} {[%emt 00:00:06]}
fxe6 {[%clk 01:30:59]} {[%emt 00:00:05]} 6. cxb5 {[%clk 01:32:56]} {[%emt
00:00:03]} d5 {[%clk 01:31:16]} {[%emt 00:00:13]} 7. Nc3 {[%clk 01:32:35]}
{[%emt 00:00:50]} Bb7 {[%clk 01:14:06]} {[%emt 00:17:40]} 8. e4 {[%clk
01:32:40]} {[%emt 00:00:26]} d4 {[%clk 00:40:39]} {[%emt 00:33:57]} 9. e5
{[%clk 01:32:52]} {[%emt 00:00:17]} Nfd7 {[%clk 00:39:04]} {[%emt 00:02:05]} 10.
Ne2 {[%clk 01:33:12]} {[%emt 00:00:10]} Bxf3 {[%clk 00:31:48]} {[%emt
00:07:46]} 11. gxf3 {[%clk 01:33:32]} {[%emt 00:00:10]} Nxe5 {[%clk 00:31:56]}
{[%emt 00:00:23]} 12. Bg2 {[%clk 01:24:28]} {[%emt 00:09:33]} Nbd7 {[%clk
00:31:18]} {[%emt 00:01:08]} 13. f4 {[%clk 01:20:55]} {[%emt 00:04:03]} Ng6
{[%clk 00:31:46]} {[%emt 00:00:02]} 14. Qb3 {[%clk 01:20:23]} {[%emt 00:01:02]}
Rb8 {[%clk 00:28:36]} {[%emt 00:25:34]} 15. Qxe6+ {[%clk 01:19:51]} {[%emt
00:01:02]} Be7 {[%clk 00:24:32]} {[%emt 00:04:34]} 16. Bc6 {[%clk 01:16:19]}
{[%emt 00:04:01]} Rf8 {[%clk 00:10:59]} {[%emt 00:14:04]} 17. f5 {[%clk
01:04:32]} {[%emt 00:12:17]} Nh4 {[%clk 00:08:35]} {[%emt 00:02:54]} 18. Ng3
{[%clk 01:04:33]} {[%emt 00:00:28]} Rb6 {[%clk 00:03:16]} {[%emt 00:05:50]} 19.
Kd1 {[%clk 01:01:39]} {[%emt 00:03:24]} Rxc6 {[%clk 00:00:33]} {[%emt
00:03:13]} 20. bxc6 {[%clk 01:01:44]} {[%emt 00:00:25]} Nf6 {[%clk 00:00:55]}
{[%emt 00:00:07]} 21. Bf4 {[%clk 01:00:56]} {[%emt 00:01:18]} Nd5 {[%clk
00:00:58]} {[%emt 00:00:28]} 22. c7 {[%clk 01:01:18]} {[%emt 00:00:09]} Nxc7
{[%clk 00:01:20]} {[%emt 00:00:08]} 23. Qc6+ {[%clk 01:01:43]} {[%emt
00:00:04]} Qd7 {[%clk 00:01:00]} {[%emt 00:00:50]} 24. Qxc7 {[%clk 01:02:06]}
{[%emt 00:00:07]} Qb5 {[%clk 00:00:42]} {[%emt 00:00:48]} 25. Re1 {[%clk
01:00:08]} {[%emt 00:02:28]} Qd3+ {[%clk 00:01:02]} {[%emt 00:00:10]} 26. Bd2
{[%clk 01:00:29]} {[%emt 00:00:09]} 1-0